fUSD/lending_fUSD_20240227
["ID","MTS","AMOUNT","RATE_DAILY","PERIOD"]
[315462940,1709051443946,-646.68,0.00023899,2]
[315462941,1709051443956,-500.0,0.00023899,2]
[315462942,1709051443968,-500.0,0.00023899,2]
[315462943,1709051443978,-500.0,0.00023899,2]
[315462944,1709051443987,-500.0,0.00023899,2]
[315462945,1709051443997,-500.0,0.00023899,2]
[315462946,1709051444007,-354.65560129,0.00023899,2]
[315462947,1709051444017,-500.0,0.00023899,2]
[315462948,1709051444026,-500.0,0.00023899,2]
[315462949,1709051444036,-197.69998084,0.00023899,2]
[315462950,1709051444045,-500.0,0.00023899,2]
[315462951,1709051444055,-500.0,0.00023899,2]
[315462952,1709051444065,-500.0,0.00023899,2]
[315462953,1709051444074,-500.0,0.00023899,2]
[315462954,1709051444084,-39591.2552,0.000239,2]
[315462955,1709051444095,-32534.6724,0.000239,2]
[315462956,1709051444104,-471.4082,0.000239,2]
[315462957,1709051444115,-1738.0615,0.000239,2]
[315462958,1709051444125,-200000.0,0.000239,2]
[315462959,1709051444135,-7015.09,0.000239,2]
[315462960,1709051444145,-7015.09,0.000239,2]
[315462961,1709051444155,-7015.09,0.000239,2]
[315462962,1709051444164,-7015.09,0.000239,2]
[315462963,1709051444174,-7015.09,0.000239,2]
[315462964,1709051444183,-7015.09,0.000239,2]
[315462965,1709051444192,-7015.09,0.000239,2]
[315462966,1709051444202,-7015.09,0.000239,2]
[315462967,1709051444212,-7015.09,0.000239,2]
[315462968,1709051444228,-7015.09,0.000239,2]
[315462969,1709051444239,-7015.09,0.000239,2]
[315462970,1709051444250,-7015.09,0.000239,2]
[315462971,1709051444260,-7015.09,0.000239,2]
[315462972,1709051444270,-7015.09,0.000239,2]
[315462973,1709051444281,-7015.09,0.000239,2]
[315462974,1709051444291,-7015.09,0.000239,2]
[315462975,1709051444302,-162.67,0.000239,2]
[315462976,1709051444316,-7015.09,0.000239,2]
[315462977,1709051444326,-7015.09,0.000239,2]
[315462978,1709051444337,-162.67,0.000239,2]
[315462979,1709051444347,-7015.09,0.000239,2]
[315462980,1709051444358,-162.67,0.000239,2]
[315462981,1709051444369,-7015.09,0.000239,2]
[315462982,1709051444379,-162.67,0.000239,2]
[315462983,1709051444390,-162.67,0.000239,2]
[315462984,1709051444401,-162.67,0.000239,2]
[315462985,1709051444412,-162.67,0.000239,2]
[315462986,1709051444424,-162.67,0.000239,2]
[315462987,1709051444435,-162.67,0.000239,2]
[315462988,1709051444446,-162.67,0.000239,2]
[315462989,1709051444456,-162.67,0.000239,2]
[315462990,1709051444472,-162.67,0.000239,2]
[315462991,1709051444482,-162.67,0.000239,2]
[315462992,1709051444492,-162.67,0.000239,2]
[315462993,1709051444502,-162.67,0.000239,2]
[315462994,1709051444512,-162.67,0.000239,2]
[315462995,1709051444522,-150.0,0.000239,2]
[315462996,1709051444534,-151.30090912,0.000239,2]
[315462997,1709051444543,-218.25669388,0.000239,2]
[315462998,1709051444554,-150.0,0.00023903,2]
[315462999,1709051444564,-150.0,0.00023926,2]
[315463000,1709051444574,-150.0,0.00023926,2]
[315463001,1709051444583,-150.0,0.00023947,2]
[315463002,1709051444592,-150.0,0.00023951,2]
[315463003,1709051444602,-150.0,0.00023958,2]
[315463004,1709051444611,-150.0,0.00023961,2]
[315463005,1709051444622,-300.0,0.00023977,2]
[315463006,1709051444634,-169.67,0.00023977,2]
[315463007,1709051444644,-453.066534,0.00023978,3]
[315463008,1709051444654,-6859.15549056,0.0002398,2]
[315463009,1709051444909,-3140.84450944,0.0002398,2]
[315463010,1709051444919,-10000.0,0.0002398,2]
[315463011,1709051444929,-6750.50217782,0.0002398,2]
[315463012,1709051445042,-500.0,0.00023835,2]
[315463013,1709051445052,-500.0,0.00023835,2]
[315463014,1709051445062,-2993.49782218,0.0002398,2]
[315463015,1709051445072,-150.0,0.00023981,2]
[315463016,1709051445086,-150.0,0.00023982,2]
[315463017,1709051445095,-400.0,0.0002399,2]
[315463018,1709051445105,-150.0,0.00023994,2]
[315463019,1709051445115,-1263.47945623,0.00023996,2]
[315463020,1709051445126,-500.0,0.00023999,2]
[315463021,1709051445136,-500.0,0.00023999,2]
[315463022,1709051445145,-500.0,0.00023999,2]
[315463023,1709051445155,-500.0,0.00023999,2]
[315463024,1709051445164,-500.0,0.00023999,2]
[315463025,1709051445174,-500.0,0.00023999,2]
[315463026,1709051445184,-500.0,0.00023999,2]
[315463027,1709051445194,-500.0,0.00023999,2]
[315463028,1709051445203,-500.0,0.00023999,2]
[315463029,1709051445216,-500.0,0.00023999,2]
[315463030,1709051445227,-500.0,0.00023999,2]
[315463031,1709051445236,-500.0,0.00023999,2]
[315463032,1709051445246,-500.0,0.00023999,2]
[315463033,1709051445256,-500.0,0.00023999,2]
[315463034,1709051445265,-500.0,0.00023999,2]
[315463035,1709051445274,-392.37619425,0.00023999,2]
[315463036,1709051445284,-500.0,0.00023999,2]
[315463037,1709051445293,-500.0,0.00023999,2]
[315463038,1709051445303,-500.0,0.00023999,2]
[315463039,1709051445313,-500.0,0.00023999,2]
[315463040,1709051445322,-500.0,0.00023999,2]
[315463041,1709051445331,-500.0,0.00023999,2]
[315463042,1709051445341,-500.0,0.00023999,2]
[315463043,1709051445351,-500.0,0.00023999,2]
[315463044,1709051445364,-500.0,0.00023999,2]
[315463045,1709051445373,-500.0,0.00023999,2]
[315463046,1709051445383,-500.0,0.00023999,2]
[315463047,1709051445392,-500.0,0.00023999,2]
[315463048,1709051445402,-500.0,0.00023999,2]
[315463049,1709051445412,-500.0,0.00023999,2]
[315463050,1709051445421,-500.0,0.00023999,2]
[315463051,1709051445431,-500.0,0.00023999,2]
[315463052,1709051445440,-500.0,0.00023999,2]
[315463053,1709051445451,-500.0,0.00023999,2]
[315463054,1709051445460,-500.0,0.00023999,2]
[315463055,1709051445474,-500.0,0.00023999,2]
[315463056,1709051445484,-500.0,0.00023999,2]
[315463057,1709051445495,-500.0,0.00023999,2]
[315463058,1709051445505,-500.0,0.00023999,2]
[315463059,1709051445515,-500.0,0.00023999,2]
[315463060,1709051445526,-500.0,0.00023999,2]
[315463061,1709051445539,-500.0,0.00023999,2]
[315463062,1709051445549,-633.36494594,0.00023999,2]
[315463063,1709051445561,-1925.55864704,0.00023999,2]
[315463064,1709051445571,-500.0,0.00023999,2]
[315463065,1709051445582,-210.88218619,0.00023999,2]
[315463066,1709051445592,-457.82273806,0.00023999,2]
[315463067,1709051445602,-500.0,0.00023999,2]
[315463068,1709051445612,-500.0,0.00023999,2]
[315463069,1709051445623,-500.0,0.00023999,2]
[315463070,1709051445634,-646.75,0.00023999,2]
[315463071,1709051445647,-500.0,0.00023999,2]
[315463072,1709051445658,-500.0,0.00023999,2]
[315463073,1709051445668,-500.0,0.00023999,2]
[315463074,1709051445678,-500.0,0.00023999,2]
[315463075,1709051445689,-539.11,0.00023999,2]
[315463076,1709051445699,-500.0,0.00023999,2]
[315463077,1709051445708,-620.07,0.00023999,2]
[315463078,1709051445722,-244.78000001,0.00023999,2]
[315463079,1709051445733,-500.0,0.00023999,2]
[315463081,1709051445743,-459.33,0.00023999,2]
[315463082,1709051445754,-500.0,0.00023999,2]
[315463083,1709051445763,-500.0,0.00023999,2]
[315463084,1709051445773,-500.0,0.00023999,2]
[315463085,1709051445783,-460.4794637,0.00023999,2]
[315463086,1709051445793,-500.0,0.00023999,2]
[315463087,1709051445803,-500.0,0.00023999,2]
[315463088,1709051445813,-500.0,0.00023999,2]
[315463089,1709051445822,-500.0,0.00023999,2]
[315463091,1709051445833,-500.0,0.00023999,2]
[315463093,1709051445842,-500.0,0.00023999,2]
[315463095,1709051445853,-500.0,0.00023999,2]
[315463097,1709051445863,-500.0,0.00023999,2]
[315463099,1709051445872,-500.0,0.00023999,2]
[315463101,1709051445882,-500.0,0.00023999,2]
[315463102,1709051445892,-500.0,0.00023999,2]
[315463105,1709051445901,-500.0,0.00023999,2]
[315463107,1709051445911,-500.0,0.00023999,2]
[315463109,1709051445921,-500.0,0.00023999,2]
[315463111,1709051445930,-500.0,0.00023999,2]
[315463113,1709051445940,-500.0,0.00023999,2]
[315463115,1709051445950,-500.0,0.00023999,2]
[315463117,1709051445959,-500.0,0.00023999,2]
[315463118,1709051445970,-500.0,0.00023999,2]
[315463119,1709051445979,-535.70713718,0.00023999,2]
[315463120,1709051445989,-500.0,0.00023999,2]
[315463121,1709051445998,-500.0,0.00023999,2]
[315463122,1709051446007,-500.0,0.00023999,2]
[315463123,1709051446018,-626.93,0.00023999,2]
[315463124,1709051446027,-500.0,0.00023999,2]
[315463125,1709051446036,-341.87,0.00023999,2]
[315463126,1709051446046,-229308.46726939,0.00024,4]
[315463127,1709051446073,-410.7421572,0.00024,4]
[315463128,1709051446084,-2838.15,0.00024,4]
[315463137,1709051662116,151.0,0.00029902,120]
[315463138,1709051879432,28208.74,0.000219,14]
[315463139,1709052567056,151.0,0.00029291,120]
[315463140,1709052632067,-258.43377631,0.00018925,2]
[315463141,1709052632078,-626.09,0.00018926,2]
[315463142,1709052632087,-207.0,0.00020127,2]
[315463144,1709052632097,-127.76042026,0.00020783,2]
[315463145,1709052632110,-72.23957974,0.00020783,2]
[315463146,1709052632331,-222.64417859,0.00020858,2]
[315463147,1709052632344,-385.931372,0.00020858,2]
[315463148,1709052632360,-460.0,0.00020858,2]
[315463149,1709052632402,-931.42444941,0.00020858,2]
[315463150,1709052632411,-250.0,0.00020859,2]
[315463151,1709052632421,-300.0,0.00020906,2]
[315463152,1709052632430,-372.68,0.00020909,2]
[315463153,1709052632440,-250.0,0.00020972,2]
[315463154,1709052632449,-172.68,0.00021018,2]
[315463155,1709052632458,-500.0,0.00021096,2]
[315463156,1709052632468,-626.09,0.0002119,2]
[315463157,1709052632477,-150.0,0.00021205,2]
[315463158,1709052632487,-262.0,0.00021237,2]
[315463159,1709052632495,-500.0,0.0002126,2]
[315463160,1709052632505,-158.4550168,0.00021384,2]
[315463161,1709052632514,-1000.0,0.00021485,2]
[315463162,1709052632523,-277.39,0.0002153,2]
[315463163,1709052632532,-158.45501679,0.00021635,2]
[315463164,1709052632542,-150.0,0.00021799,2]
[315463165,1709052632551,-300.0,0.00021799,2]
[315463166,1709052632561,-689.8137501,0.000218,2]
[315463167,1709052632569,-157.62675042,0.000218,2]
[315463168,1709052632579,-50000.0,0.000218,2]
[315463169,1709052632587,-231.26,0.0002182,2]
[315463170,1709052632596,-158.45501679,0.00021887,2]
[315463171,1709052632605,-627.29,0.0002189,3]
[315463172,1709052632614,-313.64,0.0002189,3]
[315463173,1709052632623,-156.82,0.0002189,3]
[315463174,1709052632632,-470.49,0.0002189,3]
[315463175,1709052632642,-1000.0,0.00021899,2]
[315463176,1709052632651,-322.63136524,0.00021899,2]
[315463177,1709052632660,-500.0,0.00021899,2]
[315463178,1709052632669,-265.81957714,0.00021899,2]
[315463179,1709052632678,-500.0,0.00021899,2]
[315463180,1709052632687,-500.0,0.00021899,2]
[315463181,1709052632696,-500.0,0.00021899,2]
[315463182,1709052632704,-500.0,0.00021899,2]
[315463183,1709052632713,-500.0,0.00021899,2]
[315463184,1709052632722,-500.0,0.00021899,2]
[315463185,1709052632732,-413.33649459,0.00021899,2]
[315463186,1709052632741,-500.0,0.00021899,2]
[315463187,1709052632750,-75471.61221975,0.000219,2]
[315463188,1709052632763,-1066.4966,0.000219,2]
[315463189,1709052632774,-127820.88967813,0.000219,2]
[315463190,1709052632785,-517.638994,0.000219,2]
[315463191,1709052632800,-2730.79682056,0.000219,2]
[315463192,1709052632812,-300.0,0.000219,2]
[315463193,1709052632826,-1727.96399541,0.000219,2]
[315463194,1709052632838,-3621.08125752,0.000219,2]
[315463203,1709052638080,-225.0,0.00021537,2]
[315463204,1709052638090,-623.26710872,0.000219,2]
[315463205,1709052638104,-18174.85201933,0.000219,2]
[315463206,1709052638116,-1928.33481144,0.000219,2]
[315463207,1709052638139,-515.85435007,0.000219,2]
[315463208,1709052638171,-3520.66396125,0.000219,2]
[315463209,1709052638204,-2403.66889538,0.000219,2]
[315463210,1709052638253,-1593.16871692,0.000219,2]
[315463211,1709052638265,-706.17412331,0.000219,2]
[315463212,1709052638326,-11032.54195245,0.000219,2]
[315463213,1709052638348,-377.38929136,0.000219,2]
[315463234,1709052640679,-547.23831254,0.000219,2]
[315463235,1709052640691,-284.71,0.000219,2]
[315463236,1709052640744,-711.92091194,0.000219,2]
[315463237,1709052640756,-532.1858719,0.000219,2]
[315463238,1709052640859,-825.08704032,0.000219,2]
[315463239,1709052641590,-4600.87884266,0.000219,2]
[315463327,1709052643450,-6773.60014344,0.000219,2]
[315463349,1709052646137,-500.0,0.0002126,2]
[315463350,1709052646149,-6662.87500525,0.000219,2]
[315463351,1709052646306,-8256.533138,0.000219,2]
[315463352,1709052646368,-5945.66161876,0.000219,2]
[315463353,1709052646389,-8371.82386736,0.000219,2]
[315463480,1709052793031,199.0,0.000232,30]
[315463485,1709053048564,151.0,0.00029506,120]
[315463487,1709053361069,151.0,0.00029264,120]
[315463488,1709053400340,-258.43377631,0.00018126,2]
[315463489,1709053400362,-207.0,0.00018127,2]
[315463490,1709053400383,-626.08502974,0.000192,2]
[315463491,1709053400402,-563.48,0.00019501,2]
[315463495,1709053590135,-201.03055223,0.00019024,2]
[315464402,1709053760185,-642.40605004,0.00018924,2]
[315464403,1709053760206,-258.43377631,0.00018925,2]
[315464404,1709053760228,-218.25669388,0.00018926,2]
[315464405,1709053760251,-150.0,0.00019023,2]
[315464406,1709053760272,-158033.36347977,0.00019024,2]
[315464466,1709053832337,-258.43377631,0.00018643,2]
[315464467,1709053832347,-58.52267168,0.00018925,2]
[315464468,1709053832360,-220.47732832,0.00018925,2]
[315464469,1709053832369,-307.67267168,0.00018926,2]
[315464470,1709053832381,-334.09195921,0.00018926,2]
[315464471,1709053832390,-174.38002793,0.00019014,2]
[315464472,1709053832402,-27.65549359,0.00019014,2]
[315464473,1709053832411,-432.19117833,0.00019023,2]
[315464474,1709053832419,-103.45430808,0.00019024,2]
[315464475,1709053832431,-2603.71306986,0.00019024,2]
[315464476,1709053832443,-567.0516138,0.00019024,2]
[315464477,1709053832455,-357238.17345271,0.00019024,2]
[315464478,1709053832466,-19309.76642911,0.00019024,2]
[315464479,1709053832478,-48939.15999998,0.00019024,2]
[315464480,1709053832548,-9026.40619995,0.00019024,2]
[315464481,1709053832560,-768.59427376,0.00019024,2]
[315464482,1709053832571,-497.80079929,0.00019024,2]
[315464483,1709053832621,-467236.47051061,0.00019024,2]
[315464484,1709053832631,-535.3,0.00019026,2]
[315464485,1709053832643,-490.37072162,0.00019178,2]
[315464486,1709053832652,-230.79919897,0.00019499,2]
[315464487,1709053832662,-470.17045098,0.00019499,2]
[315464488,1709053832671,-201.01801353,0.00019499,2]
[315464490,1709053832680,-981.99056263,0.00019499,2]
[315464491,1709053832689,-1111.1012051,0.000195,2]
[315464493,1709053832698,-641.76463085,0.00019637,2]
[315464495,1709053832707,-207.0,0.00019744,2]
[315464497,1709053832716,-641.76463085,0.00020347,2]
[315464498,1709053832726,-210.0,0.00020925,2]
[315464499,1709053832735,-641.76463085,0.00021058,2]
[315464500,1709053832744,-250.0,0.0002107,2]
[315464501,1709053832753,-2000.0,0.00021085,2]
[315464502,1709053832762,-310.56,0.00021092,2]
[315464503,1709053832772,-250.0,0.00021125,2]
[315464504,1709053832781,-800.0,0.00021134,2]
[315464505,1709053832791,-500.0,0.0002126,2]
[315464506,1709053832800,-535.3,0.0002129,2]
[315464507,1709053832809,-158.45501679,0.00021431,2]
[315464508,1709053832818,-150.0,0.0002144,2]
[315464509,1709053832827,-200.0,0.00021497,2]
[315464510,1709053832836,-158.45501679,0.00021641,2]
[315464511,1709053832845,-150.0,0.00021642,2]
[315464512,1709053832854,-641.76463085,0.00021768,2]
[315464513,1709053832864,-1189.66845116,0.00021818,2]
[315464514,1709053832873,-158.45501679,0.00021851,2]
[315464515,1709053832882,-2156.43811281,0.00021898,2]
[315464516,1709053832892,-156.73,0.00021918,2]
[315464517,1709053832901,-158.42,0.00021918,2]
[315464518,1709053832910,-365.91,0.00021918,2]
[315464519,1709053832919,-304.93,0.00021918,2]
[315464520,1709053832928,-254.11,0.00021918,2]
[315464521,1709053832937,-211.75,0.00021918,2]
[315464522,1709053832946,-176.46,0.00021918,2]
[315464523,1709053832956,-882.34,0.00021918,2]
[315464524,1709053832966,-436.0,0.00022,4]
[315464525,1709053832975,-1750.0,0.00022,3]
[315464526,1709053832985,-1189.66845109,0.00022007,2]
[315464527,1709053832994,-158.45501679,0.00022061,2]
[315464528,1709053833003,-1108.17072198,0.00022104,3]
[315464529,1709053833013,-1897.26517643,0.00022104,3]
[315464530,1709053833022,-3902.47836847,0.00022104,3]
[315464531,1709053833031,-878.05763291,0.00022104,3]
[315464532,1709053833042,-176.32922731,0.00022104,3]
[315464533,1709053833051,-242.22271137,0.00022104,3]
[315464534,1709053833060,-1189.66845109,0.00022197,2]
[315464535,1709053833069,-218.25669388,0.00022256,2]
[315464536,1709053833078,-207.0,0.0002226,5]
[315464537,1709053833087,-158.45501679,0.0002227,2]
[315464538,1709053833097,-105149.56501651,0.000223,2]
[315464542,1709053838451,-3040.8,0.00022009,2]
[315464543,1709053838460,-152041.19933884,0.000223,4]
[315464544,1709053838512,-384.90313745,0.000223,4]
[315464545,1709053838524,-390.04575568,0.000223,4]
[315464558,1709053840857,-250.0,0.00022009,2]
[315464559,1709053840866,-390.97163049,0.00022166,2]
[315464560,1709053840878,-795.11524459,0.00022166,2]
[315464561,1709053840888,-58.75475541,0.000223,4]
[315464562,1709053841543,-36482.88406619,0.000223,4]
[315464563,1709053841554,-25232.27998068,0.000223,2]
[315464701,1709053844702,-2850.1,0.000223,2]
[315464702,1709053844761,-1416.68237191,0.000223,2]
[315464726,1709053846456,-258.43377631,0.00022299,2]
[315464727,1709053846466,-2971.5662237,0.000223,2]
[315464730,1709053846921,914417.60013651,0.00019024,2]
[315464731,1709053848623,13331.795294,0.0002,3]
[315464732,1709053848885,13331.795294,0.0002,3]
[315464733,1709053849077,13331.795294,0.0002,3]
[315464734,1709053849340,13331.795294,0.0002,3]
[315464735,1709053849526,13331.795294,0.0002,3]
[315464736,1709053849717,13331.795294,0.0002,3]
[315464737,1709053849939,13331.795294,0.0002,3]
[315464738,1709053850362,13331.795294,0.0002,3]
[315464750,1709053850547,13331.795294,0.0002,3]
[315464774,1709053850767,13331.794294,0.0002,3]
[315464818,1709053864587,202.0,0.00019744,2]
[315464823,1709053924422,210.0,0.00019744,2]
[315464828,1709054061307,481.77,0.00019712,2]
[315464831,1709054552804,457.68,0.00019672,2]
[315464833,1709054720844,-1102.71965397,0.000212,2]
[315464846,1709055031474,-194.0,0.00021237,2]
[315464847,1709055031484,-500.0,0.0002126,2]
[315464848,1709055031493,-2000.0,0.00021308,2]
[315464849,1709055031503,-250.0,0.00021347,2]
[315464850,1709055031514,-983.21323852,0.00021371,2]
[315464851,1709055031523,-250.0,0.00021372,2]
[315464852,1709055031534,-360.0,0.00021414,2]
[315464853,1709055031544,-155.28012277,0.00021442,2]
[315464854,1709055031553,-258.8,0.00021449,2]
[315464855,1709055031564,-640.0,0.00021518,2]
[315464856,1709055031574,-155.28012272,0.00021624,2]
[315464857,1709055031584,-207.0,0.00021776,2]
[315464858,1709055031593,-919.42,0.000218,2]
[315464859,1709055031602,-155.28012272,0.00021807,2]
[315464860,1709055031612,-300.0,0.00021807,2]
[315464861,1709055031623,-150.0,0.00021807,2]
[315464862,1709055031632,-300.0,0.00021807,2]
[315464863,1709055031836,-300.0,0.00021807,2]
[315464864,1709055031846,-9358.0,0.00021808,2]
[315464865,1709055031856,-8000.0,0.000219,2]
[315464866,1709055031866,-28617.01,0.000219,2]
[315464867,1709055031875,-999.99,0.000219,2]
[315464868,1709055031885,-157.19,0.00021918,2]
[315464869,1709055031895,-158.86,0.00021918,2]
[315464870,1709055031905,-457.68,0.00021936,2]
[315464871,1709055031914,-155.28012272,0.00021989,2]
[315464872,1709055031923,-1016.23756749,0.00022,2]
[315464874,1709055031932,-251.78372974,0.00022,2]
[315464876,1709055031941,-163.19085931,0.00022104,3]
[315464878,1709055031950,-1000.0,0.00022104,3]
[315464880,1709055031959,-169.20825901,0.00022104,3]
[315464882,1709055031969,-3512.23053162,0.00022104,3]
[315464884,1709055031979,-155.28012272,0.00022171,2]
[315464886,1709055031988,-2552.0,0.000222,2]
[315464888,1709055031997,-28786.0415,0.000222,2]
[315464890,1709055032007,-806.97261211,0.00022255,2]
[315464892,1709055032016,-62379.8064072,0.000223,2]
[315464894,1709055032025,-194.0,0.00022333,2]
[315464896,1709055032035,-155.28012272,0.00022353,2]
[315464898,1709055032044,-500.0,0.00022356,2]
[315464900,1709055032053,-5486.0,0.000225,2]
[315464902,1709055032063,-155.28012272,0.00022536,2]
[315464904,1709055032072,-193.58684789,0.00022538,2]
[315464906,1709055032081,-5844.725,0.00022576,2]
[315464908,1709055032090,-1996.92184564,0.000226,2]
[315464910,1709055032100,-157.03,0.00022647,2]
[315464912,1709055032110,-156.413216,0.00022676,2]
[315464914,1709055032120,-218.212217,0.00022676,2]
[315464916,1709055032129,-416.137804,0.00022676,2]
[315464918,1709055032139,-156.413216,0.00022676,2]
[315464920,1709055032149,-155.28012272,0.00022718,2]
[315464922,1709055032158,-155.22,0.0002274,2]
[315464924,1709055032167,-967.50503178,0.00022789,2]
[315464926,1709055032177,-171.6537,0.00022789,2]
[315464928,1709055032186,-34017.8278,0.00022789,2]
[315464931,1709055032195,-122688.6774,0.00022789,2]
[315464932,1709055032205,-10578.72647166,0.00022889,2]
[315464935,1709055032218,-1003.03142987,0.00022889,2]
[315464937,1709055032229,-1428.63103375,0.00022889,2]
[315464940,1709055032245,-665.0703746,0.00022889,2]
[315464942,1709055032257,-818.26057678,0.00022889,2]
[315464944,1709055032268,-485.80288671,0.00022889,2]
[315464948,1709055032289,-11022.99474401,0.00022889,2]
[315464950,1709055032301,-552.1329932,0.00022889,2]
[315464952,1709055032315,-6669.8940524,0.00022889,2]
[315464954,1709055032327,-132699.79043702,0.00022889,2]
[315464956,1709055032337,-471.4082,0.00022899,2]
[315464958,1709055032345,-16485.08884658,0.00022899,2]
[315464960,1709055032357,-5821.41077089,0.00022899,2]
[315464963,1709055032368,-2036.68632375,0.00022899,2]
[315464965,1709055032382,-1995.02676161,0.00022899,2]
[315464967,1709055032394,-1472.97,0.00022899,2]
[315464970,1709055032414,-10397.59897673,0.00022899,2]
[315464987,1709055032569,-1399.41752044,0.00022899,2]
[315464989,1709055032578,-32534.6724,0.00022899,2]
[315464991,1709055032588,-500.0,0.00022899,2]
[315464993,1709055032597,-209.3303,0.000229,2]
[315464995,1709055032607,-1254.34889405,0.000229,2]
[315464997,1709055032617,-459.19126185,0.000229,2]
[315464999,1709055032626,-1738.0615,0.000229,2]
[315465001,1709055032635,-5000.0,0.000229,2]
[315465003,1709055032644,-155.28012272,0.000229,2]
[315465005,1709055032655,-151.26763001,0.000229,2]
[315465007,1709055032664,-172.69094662,0.000229,2]
[315465009,1709055032677,-157.03,0.0002293,2]
[315465011,1709055032686,-967.50503178,0.00022948,2]
[315465013,1709055032697,-156.413216,0.00022959,2]
[315465015,1709055032707,-218.212217,0.00022959,2]
[315465017,1709055032717,-416.137804,0.00022959,2]
[315465019,1709055032726,-156.413216,0.00022959,2]
[315465021,1709055032736,-170.12014203,0.00022979,2]
[315465024,1709055032746,-151.26762989,0.00022979,2]
[315465026,1709055032756,-280.66977981,0.00022988,2]
[315465028,1709055032766,-1461.84827552,0.00022989,2]
[315465029,1709055032775,-8990.3802342,0.00022989,2]
[315465031,1709055032784,-42834.41113434,0.00022989,2]
[315465033,1709055032793,-12309.09464435,0.00022989,2]
[315465035,1709055032802,-17349.19766335,0.00022989,2]
[315465038,1709055032812,-274.751792,0.00022989,3]
[315465039,1709055032822,-157.882546,0.00022989,7]
[315465041,1709055032832,-151.0,0.00022989,7]
[315465043,1709055032841,-154.775418,0.00022989,7]
[315465045,1709055032850,-154.319672,0.00022989,7]
[315465047,1709055032859,-2356.76775349,0.00022989,2]
[315465049,1709055032868,-1254.34889399,0.00022991,2]
[315465051,1709055032877,-5727.83371092,0.00022997,2]
[315465053,1709055032886,-47898.2736356,0.00022999,2]
[315465055,1709055032895,-475.11608395,0.00022999,2]
[315465057,1709055032904,-221.79815406,0.00022999,2]
[315465059,1709055032913,-205.58637642,0.00022999,2]
[315465061,1709055032923,-276.38167301,0.00022999,2]
[315465063,1709055032933,-707.0,0.00023,2]
[315465064,1709055032942,-1105822.83121152,0.00023,2]
[315465065,1709055032954,-13847.08824381,0.00023,2]
[315465066,1709055032977,-1713.14942093,0.00023,2]
[315465067,1709055034187,5278.36410191,0.0002,3]
[315465072,1709055037612,-153.0,0.00021537,2]
[315465073,1709055037621,-207.0,0.00021776,2]
[315465074,1709055037631,-153.0,0.00022633,2]
[315465075,1709055037641,-207.91163709,0.00023,2]
[315465076,1709055037650,-39445.97678703,0.00023,4]
[315465077,1709055037670,-36900.0,0.00023,4]
[315465079,1709055037719,-110624.77789359,0.00023,4]
[315465082,1709055037729,-87141.12871507,0.00023,2]
[315465177,1709055040254,-325.132417,0.00022989,7]
[315465178,1709055040263,-3429.428196,0.00023,2]
[315465179,1709055040315,-750.31500001,0.00023,2]
[315465322,1709055042514,-203.0,0.00021537,2]
[315465326,1709055042524,-203.0,0.00022633,2]
[315465330,1709055042534,-325.132417,0.00022989,7]
[315465334,1709055042544,-1663.22860831,0.00023,2]
[315465338,1709055042557,-4213.68942148,0.00023,2]
[315465348,1709055042588,-1045.89934814,0.00023,2]
[315465351,1709055042599,-495.58079881,0.00023,2]